bitfinex-derivatives/quotes_BNBF0:USTF0_20251010
["timestamp","ask_amount","ask_price","bid_price","bid_amount"]
[1760125430364,0.14241691,1223.2,1221.0,0.60174211]
[1760125430566,0.14241691,1223.2,1221.1,0.53647716]
[1760125430766,0.14241691,1223.2,1221.2,0.53647716]
[1760125430968,0.14241691,1223.2,1220.9,0.60174211]
[1760125431168,0.14241691,1223.2,1221.0,0.53656098]
[1760125431377,0.14241691,1223.2,1221.1,0.53656098]
[1760125431566,1.32507376,1223.2,1220.7,0.60174211]
[1760125431770,1.18265685,1223.1,1220.8,0.5366138]
[1760125431971,1.18265685,1223.1,1220.9,0.5366138]
[1760125432171,1.18265685,1223.1,1221.0,0.5366138]
[1760125432370,1.18265685,1223.1,1220.6,0.60174211]
[1760125432673,1.18265685,1223.1,1220.7,0.53662934]
[1760125432873,1.18265685,1223.1,1220.8,0.53662934]
[1760125433071,1.32507376,1223.2,1220.9,0.53662934]
[1760125433270,1.32507376,1223.2,1221.0,0.53662934]
[1760125433469,1.32507376,1223.2,1220.6,0.60174211]
[1760125433673,1.32507376,1223.2,1220.7,0.53662887]
[1760125433872,1.32507376,1223.2,1220.8,0.53662887]
[1760125434077,1.32507376,1223.2,1220.9,0.53662887]
[1760125434275,1.32507376,1223.2,1221.0,0.53662887]
[1760125434574,0.14241691,1223.2,1221.1,0.53663062]
[1760125434778,0.14241691,1223.2,1221.2,0.53663062]
[1760125435082,0.14241691,1223.2,1220.5,0.60174211]
[1760125435378,0.14241691,1223.2,1220.8,0.60174211]
[1760125435678,0.14241691,1223.2,1220.9,0.53664282]
[1760125435875,0.14241691,1223.2,1221.0,0.53664282]
[1760125436174,0.14241691,1223.2,1221.1,0.53664282]
[1760125436376,0.14241691,1223.2,1221.2,0.53664282]
[1760125436579,0.14241691,1223.2,1220.7,0.60174211]
[1760125436774,0.14241691,1223.2,1220.8,0.53668259]
[1760125437076,0.14241691,1223.2,1220.9,0.53668259]
[1760125437275,0.14241691,1223.2,1221.0,0.53668259]
[1760125437481,0.14241691,1223.2,1221.1,0.53668259]
[1760125437680,0.14241691,1223.2,1220.6,0.60174211]
[1760125437876,0.14241691,1223.2,1220.7,0.5368638]
[1760125438081,0.14241691,1223.2,1220.8,0.5368638]
[1760125438384,0.14241691,1223.2,1220.9,0.5368638]
[1760125438585,0.14241691,1223.2,1221.0,0.5368638]
[1760125438780,0.14241691,1223.2,1221.1,0.5368638]
[1760125438984,0.14241691,1223.2,1220.4,0.60174211]
[1760125439185,0.14241691,1223.2,1220.5,1.1388193]
[1760125439487,0.14241691,1223.2,1220.6,0.53707719]
[1760125439787,0.14241691,1223.2,1220.7,0.53707719]
[1760125439986,0.14241691,1223.2,1220.6,0.60174211]
[1760125439987,0.14241691,1223.2,1220.8,0.53707719]
[1760125440181,0.14241691,1223.2,1220.9,0.53707719]
[1760125440383,0.14241691,1223.2,1221.0,0.53707719]
[1760125440587,0.14241691,1223.2,1221.1,0.53707719]
[1760125440788,0.14241691,1223.2,1221.2,0.53707719]
[1760125440988,0.14241691,1223.2,1220.7,0.60174211]
[1760125441185,0.14241691,1223.2,1220.9,0.60174211]
[1760125441485,0.14241691,1223.2,1221.0,1.13892552]
[1760125441688,0.14241691,1223.2,1221.1,0.53718341]
[1760125441889,0.14241691,1223.2,1221.2,0.53718341]
[1760125442085,0.14241691,1223.2,1221.3,0.53718341]
[1760125442287,0.14241691,1223.2,1221.4,0.53718341]
[1760125442590,0.14241691,1223.2,1221.5,0.53718341]
[1760125442787,0.14241691,1223.2,1221.6,0.53718341]
[1760125442992,0.14241691,1223.2,1221.7,0.53739613]
[1760125443189,0.14241691,1223.2,1221.2,0.60174211]
[1760125443393,0.14241691,1223.2,1221.3,1.13932947]
[1760125443591,0.14241691,1223.2,1221.4,0.53758736]
[1760125443892,0.14241691,1223.2,1221.5,0.53758736]
[1760125444093,0.14241691,1223.2,1221.6,0.53758736]
[1760125444290,0.14241691,1223.2,1221.7,0.53758736]
[1760125444494,0.14241691,1223.2,1221.8,0.53758736]
[1760125444694,0.14241691,1223.2,1221.9,0.53758736]
[1760125444894,0.14241691,1223.2,1222.0,0.53758736]
[1760125445094,0.14241691,1223.2,1222.1,0.53812732]
[1760125445392,0.14241691,1223.2,1221.4,0.60174211]
[1760125445595,0.14241691,1223.2,1221.1,0.8075515]
[1760125445596,0.14241691,1223.2,1221.5,0.52830303]
[1760125445795,0.14241691,1223.2,1221.6,0.52830303]
[1760125445995,0.14241691,1223.2,1221.7,0.52830303]
[1760125446198,0.14241691,1223.2,1221.2,0.60174211]
[1760125446395,0.14241691,1223.2,1221.3,0.52869731]
[1760125446590,0.14241691,1223.2,1221.4,0.52869731]
[1760125446891,0.14241691,1223.2,1220.8,0.60174211]
[1760125447091,0.14241691,1223.2,1220.9,0.52877912]
[1760125447294,0.14241691,1223.2,1221.0,0.52877912]
[1760125447494,0.14241691,1223.2,1221.1,1.13052123]
[1760125447695,0.14241691,1223.2,1221.2,0.52877912]
[1760125447898,1.18265685,1223.1,1221.3,0.52877912]
[1760125448196,1.18265685,1223.0,1221.4,0.52877912]
[1760125448393,1.18265685,1222.9,1221.1,0.60174211]
[1760125448592,1.18265685,1222.9,1220.9,0.8075515]
[1760125448593,1.18265685,1222.9,1221.2,0.52956556]
[1760125448795,1.18265685,1222.9,1221.3,0.52956556]
[1760125448990,1.18265685,1222.9,1221.4,0.52956556]
[1760125449196,1.18265685,1222.9,1221.0,0.60174211]
[1760125449393,1.18265685,1223.0,1221.1,0.52972097]
[1760125449595,1.18265685,1223.0,1221.2,0.52972097]
[1760125449797,1.18265685,1223.0,1221.3,0.52972097]
[1760125449999,1.18265685,1223.0,1221.4,0.52972097]
[1760125450199,1.18265685,1223.0,1221.0,0.60174211]
[1760125450394,1.18265685,1223.0,1221.1,0.52982767]
[1760125450599,1.18265685,1223.0,1221.2,0.52982767]
[1760125450798,1.18265685,1223.0,1221.3,0.52982767]
[1760125451102,1.18265685,1223.0,1220.9,0.60174211]
[1760125451303,1.18265685,1222.9,1221.0,0.52992809]
[1760125451499,1.18265685,1222.9,1221.1,0.52992809]
[1760125451702,1.18265685,1222.9,1221.2,0.52992809]
[1760125452001,1.18265685,1222.9,1220.8,0.60174211]
[1760125452199,1.18265685,1222.8,1220.9,0.52996303]
[1760125452399,0.14241691,1223.2,1221.0,0.52996303]
[1760125452400,1.18265685,1222.9,1221.0,0.52996303]
[1760125452698,1.18265685,1223.0,1221.1,0.52996303]
[1760125452903,1.18265685,1223.0,1221.2,0.52996303]
[1760125453202,1.18265685,1223.1,1221.3,0.52996303]
[1760125453396,0.14241691,1223.2,1221.4,0.52996303]
[1760125453599,0.14241691,1223.2,1221.5,0.52996303]
[1760125453799,0.14241691,1223.2,1221.6,0.52996303]
[1760125454100,0.14241691,1223.2,1221.7,0.52996303]
[1760125454401,0.14241691,1223.2,1221.3,0.60174211]
[1760125454601,0.14241691,1223.2,1221.4,0.52974398]
[1760125454796,0.14241691,1223.2,1221.5,0.52974398]
[1760125455001,0.14241691,1223.2,1221.6,0.52974398]
[1760125455201,0.14241691,1223.2,1221.7,0.52974398]
[1760125455402,0.14241691,1223.2,1221.8,0.52974398]
[1760125455602,0.14241691,1223.2,1221.9,0.52974398]
[1760125455800,0.14241691,1223.2,1222.0,0.52974398]
[1760125456000,0.14241691,1223.2,1221.4,0.60174211]
[1760125456204,0.14241691,1223.2,1221.5,0.52962876]
[1760125456499,0.14241691,1223.2,1221.6,1.13137087]
[1760125456703,0.14241691,1223.2,1221.7,0.52962876]
[1760125456900,0.14241691,1223.2,1221.8,0.52962876]
[1760125457104,0.14241691,1223.2,1221.9,0.52962876]
[1760125457302,0.14241691,1223.2,1222.0,0.52962876]
[1760125457502,0.14241691,1223.2,1222.1,0.52962876]
[1760125457706,0.14241691,1223.2,1221.6,0.60174211]
[1760125458001,0.14241691,1223.2,1221.7,0.52930288]
[1760125458203,0.14241691,1223.2,1221.8,0.52930288]
[1760125458403,0.14241691,1223.2,1221.9,0.52930288]
[1760125458605,0.14241691,1223.2,1222.0,0.52930288]
[1760125458800,0.14241691,1223.2,1221.5,0.60174211]
[1760125459005,0.14241691,1223.2,1221.6,0.52917233]
[1760125459202,0.14241691,1223.2,1221.7,0.52917233]
[1760125459504,0.14241691,1223.2,1221.8,0.52917233]
[1760125459705,0.14241691,1223.2,1221.9,0.52917233]
[1760125459905,0.14241691,1223.2,1221.5,0.60174211]
[1760125460105,0.14241691,1223.2,1221.6,0.52905312]
[1760125460401,0.14241691,1223.2,1221.7,0.52905312]
[1760125460608,1.18265685,1224.0,1221.8,0.52905312]
[1760125460805,1.18265685,1223.9,1221.9,0.52905312]
[1760125461105,0.1422795,1223.5,1222.0,0.52905312]
[1760125461305,0.1422795,1223.5,1222.1,0.52905312]
[1760125461501,0.1422795,1223.5,1222.2,0.52905312]
[1760125461704,0.1422795,1223.5,1221.9,0.60174211]
[1760125461705,0.1422795,1223.5,1222.3,0.52905312]
[1760125461905,0.1422795,1223.5,1221.9,0.60174211]
[1760125462103,1.18265685,1224.2,1222.0,0.52845993]
[1760125462306,0.14225071,1223.8,1222.1,0.52845993]
[1760125462607,0.14225071,1223.8,1222.0,0.60174211]
[1760125462608,0.14225071,1223.8,1222.2,1.13020204]
[1760125462810,0.14225071,1223.8,1222.3,0.52845993]
[1760125463108,0.14225071,1223.8,1222.4,0.52845993]
[1760125463310,0.14225071,1223.8,1222.5,0.52845993]
[1760125463504,2.72981337,1225.6,1220.9,2.00020695]
[1760125463505,1.18265685,1225.2,1222.6,0.52845993]
[1760125463704,2.72981337,1225.6,1222.7,0.52845993]
[1760125463904,0.14220362,1224.1,1222.8,0.52845993]
[1760125464109,1.18265685,1225.8,1222.9,0.52845993]
[1760125464414,0.14215048,1224.4,1223.0,0.52700033]
[1760125464616,1.18265685,1225.3,1223.1,0.52700033]
[1760125464911,0.14215599,1224.3,1222.6,0.60174211]
[1760125465105,0.14215599,1224.3,1222.7,0.52701503]
[1760125465305,1.18265685,1225.5,1222.8,0.52701503]
[1760125465610,0.1421647,1224.3,1222.9,0.52701503]
[1760125465810,1.18265685,1225.6,1223.0,0.52701503]
[1760125466011,0.14215018,1224.3,1223.1,0.52701503]
[1760125466210,0.14215018,1224.3,1222.4,0.60174211]
[1760125466410,1.18265685,1225.8,1222.5,0.52586606]
[1760125466612,0.14214148,1224.3,1222.6,0.52586606]
[1760125466912,1.18265685,1225.8,1222.7,0.52586606]
[1760125467108,0.14215309,1224.3,1222.8,0.52586606]
[1760125467310,0.14215309,1224.3,1222.9,0.52586606]
[1760125467513,1.18265685,1225.9,1223.0,0.52586606]
[1760125467713,0.14214206,1224.4,1222.4,0.60174211]
[1760125467914,1.18265685,1225.9,1222.5,0.52535178]
[1760125468210,0.14215077,1224.4,1222.6,0.52535178]
[1760125468414,0.14215077,1224.4,1222.7,0.52535178]
[1760125468612,1.18265685,1226.0,1222.8,0.52535178]
[1760125468810,0.14215193,1224.3,1222.9,0.52535178]
[1760125469009,1.18265685,1225.8,1223.0,0.52535178]
[1760125469211,1.18265685,1225.9,1223.1,0.52535178]
[1760125469515,0.1421287,1224.5,1223.2,0.52535178]
[1760125469715,1.18265685,1225.9,1222.8,0.60174211]
[1760125469910,0.1421258,1225.3,1222.9,0.52419494]
[1760125470114,0.1421258,1225.3,1223.0,0.52419494]
[1760125470316,0.1421258,1225.3,1223.1,0.52419494]
[1760125470615,0.1421258,1225.3,1223.2,0.52419494]
[1760125470816,0.1421258,1225.3,1223.3,0.52371939]
[1760125471014,0.1421258,1225.3,1223.4,0.52371939]
[1760125471216,0.1421258,1225.3,1222.8,0.60174211]
[1760125471511,0.1421258,1225.3,1222.9,0.5230797]
[1760125471814,0.1421258,1225.3,1223.0,0.5230797]
[1760125472015,0.1421258,1225.3,1223.1,0.5230797]
[1760125472216,0.1421258,1225.3,1223.2,0.5230797]
[1760125472415,0.1421258,1225.3,1223.3,0.5230797]
[1760125472716,0.1421258,1225.3,1222.7,0.60174211]
[1760125472717,0.1421258,1225.3,1222.6,0.60174211]
[1760125472917,0.1421258,1225.3,1222.9,0.60174211]
[1760125473116,0.1421258,1225.3,1223.0,0.52267201]
[1760125473416,0.1421258,1225.3,1223.1,0.52267201]
[1760125473616,0.1421258,1225.3,1223.2,0.52267201]
[1760125473815,0.1421258,1225.3,1223.3,0.52267201]
[1760125474016,0.1421258,1225.3,1223.4,0.52267201]
[1760125474317,0.1421258,1225.3,1222.8,0.60174211]
[1760125474516,0.1421258,1225.3,1222.9,0.52206223]
[1760125474716,0.1421258,1225.3,1223.0,0.52206223]
[1760125475016,0.1421258,1225.3,1223.1,0.52206223]
[1760125475214,0.1421258,1225.3,1223.2,0.52206223]
[1760125475414,0.1421258,1225.3,1223.3,0.52206223]
[1760125475612,0.1421258,1225.3,1222.8,0.60174211]
[1760125475819,0.1421258,1225.3,1222.9,0.52620487]
[1760125476117,0.1421258,1225.3,1223.0,0.52620487]
[1760125476313,0.1421258,1225.3,1223.1,0.52620487]
[1760125476518,0.1421258,1225.3,1223.2,0.52620487]
[1760125476717,0.1421258,1225.3,1223.3,0.52620487]
[1760125476913,0.1421258,1225.3,1223.4,0.52620487]
[1760125477219,0.1421258,1225.3,1222.8,0.60174211]
[1760125477518,0.1421258,1225.3,1222.9,0.52533498]
[1760125477717,0.1421258,1225.3,1223.0,0.52533498]
[1760125477920,0.1421258,1225.3,1223.1,0.52533498]
[1760125478120,0.1421258,1225.3,1223.2,0.52533498]
[1760125478315,0.1421258,1225.3,1223.3,0.52533498]
[1760125478514,0.1421258,1225.3,1223.4,0.52533498]
[1760125478817,0.1421258,1225.3,1222.8,0.60174211]
[1760125479019,0.1421258,1225.3,1222.9,0.52472701]
[1760125479218,0.1421258,1225.3,1223.0,0.52472701]
[1760125479420,0.1421258,1225.3,1223.1,0.52472701]
[1760125479618,0.1421258,1225.3,1223.2,0.52472701]
[1760125479820,0.1421258,1225.3,1223.3,0.52472701]
[1760125480022,0.1421258,1225.3,1222.7,0.60174211]
[1760125480224,0.1421258,1225.3,1222.8,0.52435363]
[1760125480418,0.1421258,1225.3,1222.9,0.52435363]
[1760125480618,0.1421258,1225.3,1223.0,0.52435363]
[1760125480923,0.1421258,1225.3,1223.1,0.52435363]
[1760125481217,0.1421258,1225.3,1223.2,0.52435363]
[1760125481421,0.1421258,1225.3,1223.3,0.52435363]
[1760125481619,0.1421258,1225.3,1222.7,0.60174211]
[1760125481820,0.1421258,1225.3,1222.8,1.12561603]
[1760125482123,0.1421258,1225.3,1222.9,0.52387392]
[1760125482319,0.1421258,1225.3,1223.0,0.52387392]
[1760125482523,0.1421258,1225.3,1223.1,0.52387392]
[1760125482820,0.1421258,1225.3,1223.2,0.52387392]
[1760125483024,0.1421258,1225.3,1223.3,0.52387392]
[1760125483224,0.1421258,1225.3,1223.4,0.52387392]
[1760125483421,0.1421258,1225.3,1222.6,1.21132725]
[1760125483422,0.1421258,1225.3,1223.5,0.52288251]
[1760125483725,0.1421258,1225.3,1223.0,0.60174211]
[1760125483923,0.1421258,1225.3,1223.2,0.60174211]
[1760125484120,1.18265685,1227.6,1223.3,1.12441413]
[1760125484324,2.72981337,1228.9,1223.0,0.8075515]
[1760125484325,0.14201386,1225.5,1223.4,0.52267202]
[1760125484524,0.14201386,1225.5,1223.5,0.52267202]
[1760125484720,1.18265685,1227.7,1223.6,0.52267202]
[1760125484921,0.14200517,1225.5,1223.7,0.52267202]
[1760125485228,1.18265685,1227.9,1223.1,0.60174211]
[1760125485422,0.14199532,1225.6,1223.2,1.12355595]
[1760125485619,1.18265685,1227.9,1223.3,0.52181384]
[1760125485826,1.18265685,1227.8,1223.4,0.52181384]
[1760125486025,0.14200343,1225.6,1223.5,0.52181384]
[1760125486221,1.18265685,1227.8,1223.6,0.52181384]
[1760125486522,0.14199764,1225.6,1223.7,0.52132186]
[1760125486725,1.18265685,1227.9,1223.8,0.52132186]
[1760125486923,1.18265685,1227.9,1223.3,0.60174211]
[1760125487226,0.14198721,1225.6,1223.4,0.52132122]
[1760125487521,0.14198431,1226.8,1223.5,1.12306333]
[1760125487723,0.14198431,1226.8,1223.6,0.52132122]
[1760125488025,0.14198431,1226.8,1222.0,2.00020695]
[1760125488026,0.14198431,1226.8,1223.7,0.52132122]
[1760125488325,0.14198431,1226.8,1223.1,0.60174211]
[1760125488522,0.14198431,1226.8,1223.2,0.52095395]
[1760125488823,0.14198431,1226.8,1223.3,0.52095395]
[1760125489023,0.14198431,1226.8,1223.4,0.52095395]
[1760125489222,0.14198431,1226.8,1223.5,0.52095395]
[1760125489525,0.14198431,1226.8,1223.6,0.52095395]
[1760125489722,0.14198431,1226.8,1223.0,0.60174211]
[1760125489921,0.14198431,1226.8,1223.1,0.52079899]
[1760125490225,0.14198431,1226.8,1223.2,0.52079899]
[1760125490419,0.14198431,1226.8,1223.3,0.52079899]
[1760125490623,0.14198431,1226.8,1222.8,0.60174211]
[1760125490824,0.14198431,1226.8,1222.9,0.52105059]
[1760125491022,0.14198431,1226.8,1223.0,0.52105059]
[1760125491322,0.14198431,1226.8,1223.1,0.52105059]
[1760125491522,0.14198431,1226.8,1223.2,0.52105059]
[1760125491726,0.14198431,1226.8,1223.3,0.52105059]
[1760125491923,0.14198431,1226.8,1223.4,0.52105059]
[1760125492128,0.14198431,1226.8,1222.9,0.60174211]
[1760125492329,0.14198431,1226.8,1223.0,0.52081137]
[1760125492529,0.14198431,1226.8,1223.1,0.52081137]
[1760125492828,0.14198431,1226.8,1223.2,0.52081137]
[1760125493028,0.14198431,1226.8,1223.3,0.52081137]
[1760125493229,0.14198431,1226.8,1223.0,0.60174211]
[1760125493427,0.14198431,1226.8,1223.1,0.52090376]
[1760125493624,0.14198431,1226.8,1223.2,0.52090376]
[1760125493923,0.14198431,1226.8,1223.3,0.52090376]
[1760125494127,0.14198431,1226.8,1223.4,0.52105176]
[1760125494326,0.14198431,1226.8,1223.0,0.60174211]
[1760125494529,0.14198431,1226.8,1223.1,0.52099014]
[1760125494730,0.14198431,1226.8,1223.2,0.52099014]
[1760125494933,0.14198431,1226.8,1223.3,0.52099014]
[1760125495225,0.14198431,1226.8,1223.4,0.52099014]
[1760125495430,0.14198431,1226.8,1223.0,0.60174211]
[1760125495628,0.14198431,1226.8,1223.1,0.5209108]
[1760125495927,0.14198431,1226.8,1223.2,0.5209108]
[1760125496132,0.14198431,1226.8,1223.3,0.5209108]
[1760125496431,0.14198431,1226.8,1223.4,0.5209108]
[1760125496629,0.14198431,1226.8,1223.0,0.60174211]
[1760125496927,0.14198431,1226.8,1223.1,0.52090721]
[1760125497131,0.14198431,1226.8,1223.2,0.52090721]
[1760125497426,0.14198431,1226.8,1222.8,0.60174211]
[1760125497628,0.14198431,1226.8,1222.9,0.52131137]
[1760125497827,0.14198431,1226.8,1223.0,0.52131137]
[1760125498124,0.14198431,1226.8,1222.5,0.60174211]
[1760125498330,0.14198431,1226.8,1222.6,0.52182575]
[1760125498538,0.14198431,1226.8,1222.7,0.52182575]
[1760125498731,0.14198431,1226.8,1222.8,0.52182575]
[1760125498924,0.14198431,1226.8,1222.9,0.52182575]
[1760125499133,0.14198431,1226.8,1223.0,0.52182575]
[1760125499328,0.14198431,1226.8,1223.1,0.52182575]
[1760125499528,0.14198431,1226.8,1223.2,0.52182575]
[1760125499829,0.14198431,1226.8,1223.3,0.52182575]
[1760125500027,0.14198431,1226.8,1222.7,0.60174211]
[1760125500235,0.14198431,1226.8,1222.8,1.12360199]
[1760125500431,0.14198431,1226.8,1222.9,0.52185988]
[1760125500737,0.14198431,1226.8,1223.1,0.60174211]
[1760125501034,0.14198431,1226.8,1223.3,0.60174211]
[1760125501233,0.14198431,1226.8,1223.4,0.52185988]
[1760125501430,0.14198431,1226.8,1223.6,0.60174211]
[1760125501631,0.14198431,1226.8,1223.7,0.52185988]
[1760125501832,0.14198431,1226.8,1223.6,0.60174211]
[1760125501833,0.14198431,1226.8,1223.8,0.52185988]
[1760125502033,0.14198431,1226.8,1223.9,0.52185988]
[1760125502229,0.14198431,1226.8,1223.5,0.60174211]
[1760125502434,0.14198431,1226.8,1223.6,0.52121916]
[1760125502645,0.14198431,1226.8,1223.7,0.52121916]
[1760125502844,0.14198431,1226.8,1223.8,0.52121916]
[1760125503046,0.14198431,1226.8,1223.9,0.52121916]
[1760125503243,0.14198431,1226.8,1224.0,0.52121916]
[1760125503443,0.14198431,1226.8,1223.5,0.60174211]
[1760125503643,0.14198431,1226.8,1223.6,0.52170544]
[1760125503843,0.14198431,1226.8,1223.7,0.52170544]
[1760125504042,0.14198431,1226.8,1223.8,0.52170544]
[1760125504241,0.14198431,1226.8,1223.9,0.52170544]
[1760125504543,0.14198431,1226.8,1224.0,0.52170544]
[1760125504742,0.14198431,1226.8,1223.5,0.60174211]
[1760125504942,0.14198431,1226.8,1223.6,0.52175472]
[1760125505147,0.14198431,1226.8,1223.7,0.52175472]
[1760125505346,0.14198431,1226.8,1223.8,0.52175472]
[1760125505547,0.14198431,1226.8,1222.9,1.21132725]
[1760125505548,0.14198431,1226.8,1223.9,0.52175472]
[1760125505744,0.14198431,1226.8,1224.0,0.52175472]
[1760125505948,0.14198431,1226.8,1224.1,0.52175472]
[1760125506144,0.14198431,1226.8,1223.5,0.60174211]
[1760125506343,0.14198431,1226.8,1223.6,0.53168284]
[1760125506647,0.14198431,1226.8,1223.7,0.53168284]
[1760125506844,0.14198431,1226.8,1223.8,0.53168284]
[1760125507149,0.14198431,1226.8,1223.9,0.53168284]
[1760125507345,0.14198431,1226.8,1224.0,0.53168284]
[1760125507546,0.14198431,1226.8,1224.1,0.53168284]
[1760125507843,0.14198431,1226.8,1223.5,0.60174211]
[1760125508048,0.14198431,1226.8,1223.6,0.53181979]
[1760125508248,0.14198431,1226.8,1223.7,0.53181979]
[1760125508448,0.14198431,1226.8,1223.8,0.53181979]
[1760125508644,0.14198431,1226.8,1223.4,0.60174211]
[1760125508946,0.14198431,1226.8,1223.5,0.53263606]
[1760125509245,0.14198431,1226.8,1223.6,0.53263606]
[1760125509445,0.14198431,1226.8,1223.7,0.53263606]
[1760125509747,0.14198431,1226.8,1223.1,0.60174211]
[1760125509998,0.14198431,1226.8,1223.2,0.53343585]
[1760125510153,0.14198431,1226.8,1223.3,1.13517796]
[1760125510448,0.14198431,1226.8,1223.4,0.53343585]
[1760125510649,0.14198431,1226.8,1223.5,0.53343585]
[1760125510949,0.14198431,1226.8,1223.6,0.53343585]
[1760125511549,0.14198431,1226.8,1223.7,0.53343585]
[1760125511748,0.14198431,1226.8,1223.8,0.53343585]
[1760125511950,0.14198431,1226.8,1223.9,0.53343585]
[1760125512247,0.14198431,1226.8,1224.0,0.53343585]
[1760125512452,0.14198431,1226.8,1223.7,0.60174211]
[1760125512655,0.14198431,1226.8,1223.8,0.53512088]
[1760125512853,0.14198431,1226.8,1223.5,0.60174211]
[1760125513152,0.14198431,1226.8,1223.6,0.53542076]
[1760125513355,0.14198431,1226.8,1223.7,0.53542076]
[1760125513549,0.14198431,1226.8,1223.4,0.60174211]
[1760125513550,0.14198431,1226.8,1223.2,0.60174211]
[1760125513856,0.14198431,1226.8,1223.3,0.53622995]
[1760125514049,0.14198431,1226.8,1222.9,0.60174211]
[1760125514252,0.14198431,1226.8,1223.0,1.13803154]
[1760125514453,0.14198431,1226.8,1223.1,0.53628943]
[1760125514751,0.14198431,1226.8,1223.2,0.53628943]
[1760125514949,0.14198431,1226.8,1223.3,0.53628943]
[1760125515150,0.14198431,1226.8,1223.4,0.53628943]
[1760125515455,0.14198431,1226.8,1223.5,0.53628943]
[1760125515653,0.14198431,1226.8,1223.6,0.53628943]
[1760125515849,0.14198431,1226.8,1223.7,0.53628943]
[1760125516151,0.14198431,1226.8,1223.8,0.53733497]
[1760125516355,0.14198431,1226.8,1223.9,0.53733497]
[1760125516651,0.14198431,1226.8,1224.0,0.53733497]
[1760125516950,0.14198431,1226.8,1224.1,0.53733497]
[1760125517155,0.14198431,1226.8,1223.7,0.60174211]
[1760125517465,0.14198431,1226.8,1223.8,1.13958721]
[1760125517652,0.14198431,1226.8,1223.9,0.5378451]
[1760125517856,0.14198431,1226.8,1224.0,0.5378451]
[1760125518053,0.14198431,1226.8,1224.1,0.5378451]
[1760125518353,0.14198431,1226.8,1224.2,0.5378451]
[1760125518657,0.14198431,1226.8,1224.3,0.5378451]
[1760125518854,0.14198431,1226.8,1224.4,0.53787828]
[1760125519055,0.14198431,1226.8,1224.5,0.53790145]
[1760125519252,0.14198431,1226.8,1223.7,0.60174211]
[1760125519453,0.14198431,1226.8,1223.8,0.53847996]
[1760125519652,0.14198431,1226.8,1223.9,0.53847996]
[1760125519957,0.14198431,1226.8,1224.0,0.53847996]
[1760125520258,0.14198431,1226.8,1224.1,0.53847996]
[1760125520558,0.14198431,1226.8,1223.3,0.8075515]
[1760125520559,0.14198431,1226.8,1224.2,0.53847996]
[1760125520753,0.14198431,1226.8,1224.3,0.53847996]
[1760125520954,0.14198431,1226.8,1224.4,0.53847996]
[1760125521163,0.14198431,1226.8,1224.5,0.53847996]
[1760125521357,0.14198431,1226.8,1224.6,0.53847996]
[1760125521557,0.14198431,1226.8,1224.0,0.60174211]
[1760125521755,0.14198431,1226.8,1224.1,0.5392809]
[1760125521955,0.14198431,1226.8,1224.2,0.5392809]
[1760125522253,0.14198431,1226.8,1224.3,0.5392809]
[1760125522557,0.14198431,1226.8,1223.8,0.60174211]
[1760125522753,0.14198431,1226.8,1223.9,0.53999108]
[1760125522958,0.14198431,1226.8,1224.0,0.53999108]
[1760125523259,0.14198431,1226.8,1224.1,0.53999108]
[1760125523459,0.14198431,1226.8,1224.2,0.53999108]
[1760125523658,0.14198431,1226.8,1224.3,0.53999108]
[1760125523858,0.14198431,1226.8,1223.8,0.60174211]
[1760125524155,0.14198431,1226.8,1223.9,0.54012886]
[1760125524359,0.14198431,1226.8,1224.0,0.54012886]
[1760125524565,0.14198431,1226.8,1224.1,0.54012886]
[1760125524757,0.14198431,1226.8,1224.2,0.54012886]
[1760125524960,0.14198431,1226.8,1224.3,0.54012886]
[1760125525158,0.14198431,1226.8,1223.8,0.60174211]
[1760125525461,0.14198431,1226.8,1223.9,0.54058922]
[1760125525662,0.14198431,1226.8,1224.0,0.54058922]
[1760125525856,0.14198431,1226.8,1224.1,0.54058922]
[1760125526059,0.14198431,1226.8,1223.6,0.60174211]
[1760125526257,0.14198431,1226.8,1223.7,0.5409962]
[1760125526457,0.14198431,1226.8,1223.8,0.5409962]
[1760125526661,0.14198431,1226.8,1223.9,0.5409962]
[1760125526862,0.14198431,1226.8,1224.0,0.5409962]
[1760125527161,0.14198431,1226.8,1224.1,0.5409962]
[1760125527461,0.14198431,1226.8,1224.2,0.5409962]
[1760125527656,0.14198431,1226.8,1224.3,0.5409962]
[1760125527856,0.14198431,1226.8,1223.9,0.60174211]
[1760125528063,0.14198431,1226.8,1224.0,0.54129287]
[1760125528264,0.14198431,1226.8,1224.1,1.14303498]
[1760125528459,0.14198431,1226.8,1224.2,0.54129287]
[1760125528661,0.14198431,1226.8,1224.3,0.54129287]
[1760125528958,0.14198431,1226.8,1224.4,0.54129287]
[1760125529162,0.14198431,1226.8,1224.5,0.54117925]
[1760125529358,0.14198431,1226.8,1224.6,0.54117925]
[1760125529657,0.14198431,1226.8,1224.7,0.54117925]
[1760125529858,0.14198431,1226.8,1224.8,0.54117925]
[1760125530157,0.14198431,1226.8,1224.9,0.54117925]
[1760125530363,0.14198431,1226.8,1224.4,0.60632512]
[1760125530560,0.14198431,1226.8,1224.5,0.54086812]
[1760125530861,0.14198431,1226.8,1224.6,0.54086812]
[1760125531059,0.14198431,1226.8,1224.7,0.54086812]
[1760125531363,0.14198431,1226.8,1224.8,0.54086812]
[1760125531564,0.14198431,1226.8,1224.9,0.54086812]
[1760125531860,0.14198431,1226.8,1225.0,0.54086812]
[1760125532060,0.14198431,1226.8,1224.5,0.60632512]
[1760125532263,0.14198431,1226.8,1224.6,0.54039188]
[1760125532458,0.14198431,1226.8,1224.7,0.54039188]
[1760125532662,0.14198431,1226.8,1224.8,0.54039188]
[1760125532869,0.14198431,1226.8,1224.9,0.54039188]
[1760125533065,0.14198431,1226.8,1224.3,0.60632512]
[1760125533261,0.14198431,1226.8,1224.4,1.14660727]
[1760125533459,0.14198431,1226.8,1224.5,0.54028215]
[1760125533664,0.14198431,1226.8,1224.6,0.54028215]
[1760125533865,0.14198431,1226.8,1224.7,0.54028215]
[1760125534066,0.14198431,1226.8,1224.8,0.54028215]
[1760125534365,0.14198431,1226.8,1224.9,0.54028215]
[1760125534562,0.14198431,1226.8,1224.5,0.60632512]
[1760125534766,0.14198431,1226.8,1224.6,0.54039255]
[1760125534966,0.14198431,1226.8,1224.7,0.54039255]
[1760125535163,0.14198431,1226.8,1224.8,0.54039255]
[1760125535367,0.14198431,1226.8,1224.9,0.54039255]
[1760125535589,0.14198431,1226.8,1225.0,0.54039255]
[1760125535770,0.14198431,1226.8,1224.4,0.60632512]
[1760125536071,0.14198431,1226.8,1224.5,0.53385224]
[1760125536368,0.14198431,1226.8,1224.6,0.53385224]
[1760125536565,0.14198431,1226.8,1224.7,0.53385224]
[1760125536764,0.14198431,1226.8,1224.8,0.53385224]
[1760125537065,0.14198431,1226.8,1224.9,0.53385224]
[1760125537268,0.14198431,1226.8,1225.0,0.53385224]
[1760125537469,0.14198431,1226.8,1225.1,0.53385224]
[1760125537671,0.14198431,1226.8,1225.2,0.53385224]
[1760125537964,0.14198431,1226.8,1224.8,0.60632512]
[1760125538165,0.14198431,1226.8,1224.9,0.53324261]
[1760125538368,0.14198431,1226.8,1225.0,0.53324261]
[1760125538568,0.14198431,1226.8,1225.1,0.53324261]
[1760125538769,0.14198431,1226.8,1225.2,0.53324261]
[1760125539069,0.14198431,1226.8,1225.3,0.53324261]